bitfinex/quotes_ETHUSD_20240902
["timestamp","ask_amount","ask_price","bid_price","bid_amount"]
[1725300210120,3.95664,2527.4,2527.0,3.95716]
[1725300210286,3.95664,2527.4,2526.9,3.9574]
[1725300210628,3.95653,2527.5,2527.0,7.91441]
[1725300210872,3.95653,2527.5,2527.0,3.95715]
[1725300211057,3.95653,2527.5,2527.1,3.95708]
[1725300211262,2.2578,2527.6,2527.1,3.95708]
[1725300211570,6.21421,2527.6,2527.1,3.95708]
[1725300212478,6.21421,2527.6,2527.2,3.95693]
[1725300213271,2.2578,2527.6,2527.2,3.95685]
[1725300214070,10.4648173,2528.0,2527.5,7.91279]
[1725300214244,1.04648173,2527.9,2527.5,3.95638]
[1725300214854,1.04648173,2527.9,2527.5,7.91278]
[1725300215250,10.4648173,2528.0,2527.5,3.95638]
[1725300215593,3.95549,2528.2,2527.8,3.95589]
[1725300215594,2.286,2528.2,2527.8,3.95589]
[1725300215759,8.1782573,2528.4,2527.9,3.95577]
[1725300215760,10.4642573,2528.4,2527.9,3.95577]
[1725300216093,6.24117,2528.4,2527.9,3.95577]
[1725300216286,6.24117,2528.4,2528.0,0.07148326]
[1725300216640,2.286,2528.4,2528.0,0.07148326]
[1725300216866,2.286,2528.4,2528.0,3.95562]
[1725300217064,2.286,2528.4,2528.1,0.07125411]
[1725300217267,6.5090873,2528.6,2528.2,3.9553]
[1725300217481,1.3330975,2528.5,2528.2,0.07119746]
[1725300217687,3.95499,2528.5,2528.0,3.95567]
[1725300217853,3.95499,2528.5,2528.3,0.07114082]
[1725300218056,5.39687373,2528.5,2528.0,3.95567]
[1725300218247,3.95499,2528.5,2528.4,0.07108418]
[1725300218448,3.95499,2528.5,2528.0,3.95567]
[1725300218645,3.95499,2528.5,2528.4,0.07108418]
[1725300218849,5.39687373,2528.5,2527.9,7.9115]
[1725300219050,5.39687373,2528.5,2528.4,0.07108418]
[1725300219406,5.39687373,2528.5,2528.0,3.9556]
[1725300219546,5.39687373,2528.5,2528.4,0.07108418]
[1725300219890,5.39687373,2528.5,2527.9,3.95575]
[1725300220106,1.1905961,2528.4,2527.9,3.95575]
[1725300220391,5.1457261,2528.4,2527.9,3.95575]
[1725300221583,10.4639173,2528.6,2528.1,3.95551]
[1725300222442,10.4639173,2528.6,2527.9,7.91148]
[1725300222642,11.90578003,2528.6,2528.0,3.95565]
[1725300225357,3.95503,2528.5,2528.0,3.95565]
[1725300225686,3.95503,2528.5,2527.9,3.95583]
[1725300226480,3.95503,2528.5,2527.9,7.9116]
[1725300226983,3.95503,2528.5,2527.9,3.95577]
[1725300227150,5.541111,2528.5,2527.9,3.95577]
[1725300227891,3.95524,2528.3,2527.8,3.956]
[1725300228387,3.95508,2528.4,2527.8,3.956]
[1725300228595,3.95508,2528.4,2527.9,3.95583]
[1725300228953,5.541111,2528.5,2527.9,7.91166]
[1725300229149,5.541111,2528.5,2528.0,3.95569]
[1725300229352,3.95503,2528.5,2528.0,3.95569]
[1725300231301,3.95503,2528.5,2528.1,0.07058484]
[1725300232368,4.04791974,2528.6,2528.1,4.02599484]
[1725300232574,4.04791974,2528.6,2528.2,3.95537]
[1725300233069,4.04791974,2528.6,2528.3,0.07047155]
[1725300233272,4.04791974,2528.6,2528.1,3.95552]
[1725300233473,4.04791974,2528.6,2528.4,0.07038041]
[1725300233474,8.80300271,2528.6,2528.4,0.07038041]
[1725300233703,8.80300271,2528.6,2528.1,3.95552]
[1725300233863,8.80300271,2528.6,2528.5,0.07032378]
[1725300234198,8.80300271,2528.6,2527.9,3.95577]
[1725300234400,8.00273974,2528.6,2528.5,0.07032378]
[1725300234568,3.95499,2528.5,2527.9,3.95577]
[1725300234777,5.15076297,2528.5,2527.9,3.95577]
[1725300235099,3.95499,2528.5,2528.0,4.02627699]
[1725300238811,3.95389761,2528.5,2528.0,4.02627699]
[1725300239505,2.2892,2528.3,2528.0,0.07060699]
[1725300239808,3.95492,2528.5,2528.0,4.02618699]
[1725300240666,8.00589974,2528.6,2528.1,3.95552]
[1725300240865,8.00589974,2528.6,2528.1,4.82427204]
[1725300241722,3.95494,2528.5,2528.1,0.07055034]
[1725300243339,3.95522,2528.3,2528.1,0.07055034]
[1725300243543,6.24458,2528.2,2528.1,0.07055034]
[1725300243701,6.24458,2528.2,2527.7,11.23603]
[1725300244029,6.24458,2528.2,2528.1,0.07055034]
[1725300244030,8.00649974,2528.2,2528.1,0.07055034]
[1725300244322,8.00649974,2528.2,2527.7,2.9038761]
[1725300244323,3.95557,2528.1,2527.8,0.07065822]
[1725300244637,3.95557,2528.1,2527.7,2.9038761]
[1725300245186,3.95571,2528.0,2527.7,2.9038761]
[1725300245426,5.71799974,2527.8,2527.6,19.98]
[1725300245583,8.00719974,2527.8,2527.6,19.98]
[1725300245785,6.24528,2527.8,2527.6,19.98]
[1725300246008,2.2892,2527.8,2527.6,19.98]
[1725300246403,6.2452,2527.8,2527.7,0.07073558]
[1725300247146,8.00711974,2527.8,2527.7,0.07073558]
[1725300248129,3.95617,2527.7,2527.4,3.0]
[1725300248495,7.91244,2527.7,2527.3,6.6936545]
[1725300248830,3.95634,2527.6,2527.2,7.28]
[1725300249035,3.95634,2527.6,2527.1,26.656705]
[1725300249404,3.95617,2527.7,2527.1,2.719615]
[1725300249405,3.95655,2527.5,2527.1,2.719615]
[1725300249752,7.91312,2527.5,2527.1,0.395715]
[1725300250108,3.95655,2527.5,2527.1,0.395715]
[1725300250303,6.33586,2527.4,2527.0,3.0]
[1725300250519,8.09777974,2527.4,2527.0,3.0]
[1725300250804,6.33586,2527.4,2527.0,3.0]
[1725300251004,6.33586,2527.4,2527.0,4.819488]
[1725300252822,3.9572,2527.1,2526.7,19.98]
[1725300253130,3.95741,2526.9,2526.5,7.28]
[1725300253330,3.95741,2526.9,2526.6,1.64184434]
[1725300255763,10.19055,2527.1,2526.6,1.64184434]
[1725300255990,10.19055,2527.1,2526.7,0.85997643]
[1725300256155,6.23331,2527.1,2526.7,0.85997643]
[1725300256830,3.95721,2527.1,2526.7,0.85997643]
[1725300258330,3.95721,2527.1,2526.7,4.81769643]
[1725300259040,3.9572,2527.1,2526.7,0.85997643]
[1725300259358,3.9572,2527.1,2526.6,5.59969434]
[1725300261327,3.9572,2527.1,2526.7,0.06337318]
[1725300261532,5.71887974,2527.2,2526.7,4.02110318]
[1725300261731,2.4389,2527.3,2526.8,3.95742]
[1725300261972,8.19936974,2527.5,2527.0,3.95725]
[1725300262175,8.19936974,2527.5,2527.0,4.98258065]
[1725300262334,3.95665,2527.4,2527.1,0.06314637]
[1725300263190,4.24281974,2527.5,2527.1,0.06314637]
[1725300263355,6.31066,2527.7,2527.1,4.42215601]
[1725300263676,6.31066,2527.7,2527.3,3.95678]
[1725300264180,6.31066,2527.7,2527.4,0.06320413]
[1725300265082,2.3544,2527.7,2527.4,0.06320413]
[1725300265935,1.76191974,2527.6,2527.4,0.06320413]
[1725300266137,1.76191974,2527.6,2527.2,3.95694]
[1725300266352,1.76191974,2527.6,2527.5,0.06314745]
[1725300266583,1.76191974,2527.6,2527.2,3.95694]
[1725300266733,1.76191974,2527.6,2527.5,0.06314745]
[1725300266937,1.76191974,2527.6,2527.3,3.95677]
[1725300267252,1.76191974,2527.6,2527.4,0.06320413]
[1725300268757,2.3544,2527.7,2527.4,0.06320413]
[1725300268961,6.31001,2528.1,2527.6,3.95621]
[1725300269269,6.31001,2528.1,2527.7,0.06303411]
[1725300269587,6.31001,2528.1,2527.6,3.95622]
[1725300269888,6.31001,2528.1,2527.7,0.06303411]
[1725300271907,2.3544,2528.1,2527.8,3.95592]
[1725300272209,2.3544,2528.1,2527.8,4.01691751]
[1725300275802,2.3544,2528.1,2527.8,7.97280751]
[1725300275996,2.3544,2528.1,2527.8,4.81417826]
[1725300277063,2.3544,2528.1,2527.9,3.95577]
[1725300277294,2.3544,2528.1,2527.9,4.01580278]
[1725300278397,2.4054,2528.3,2527.9,4.01580278]
[1725300279775,6.36064,2528.3,2527.9,0.06003278]
[1725300285962,6.36064,2528.3,2527.9,4.01587278]
[1725300286172,6.36064,2528.3,2527.9,4.81304906]
[1725300286395,3.95524,2528.3,2527.9,7.07874906]
[1725300287189,3.95524,2528.3,2527.9,4.81304906]
[1725300287510,3.95524,2528.3,2527.9,0.06003278]
[1725300287667,2.3025,2528.2,2527.9,0.06003278]
[1725300288716,2.3025,2528.2,2527.9,4.01584278]
[1725300290976,8.18459484,2528.4,2528.0,3.95569]
[1725300291516,8.18459484,2528.4,2528.1,0.05946879]
[1725300293218,2.326,2528.8,2528.4,3.95505]
[1725300293547,2.326,2528.8,2528.5,0.05894555]
[1725300293816,2.326,2528.8,2528.4,3.955]
[1725300294022,4.08760416,2528.8,2528.6,0.05888892]
[1725300294219,4.08760416,2528.8,2528.5,0.05894555]
[1725300294418,8.04204416,2528.8,2528.7,0.0588323]
[1725300294573,8.04204416,2528.8,2528.4,3.955]
[1725300294574,8.04204416,2528.8,2528.6,0.05888892]
[1725300294771,8.04204416,2528.8,2528.7,0.0588323]
[1725300295188,8.04204416,2528.8,2528.4,3.955]
[1725300295406,8.04204416,2528.8,2528.7,0.0588323]
[1725300295897,8.04204416,2528.8,2528.4,3.955]
[1725300296082,8.04204416,2528.8,2528.7,0.0588323]
[1725300296417,8.04204416,2528.8,2528.4,3.955]
[1725300296629,8.04204416,2528.8,2528.7,0.0588323]
[1725300296916,8.04204416,2528.8,2528.4,3.955]
[1725300297119,8.04204416,2528.8,2528.7,0.0588323]
[1725300297341,8.04204416,2528.8,2528.3,3.95514]
[1725300297526,8.04204416,2528.8,2528.7,0.0588323]
[1725300297690,8.04204416,2528.8,2528.3,3.95514]
[1725300297893,8.04204416,2528.8,2528.7,0.0588323]
[1725300298125,4.08760416,2528.8,2528.4,3.95507]
[1725300298307,4.08760416,2528.8,2528.7,0.0588323]
[1725300298534,8.04205416,2528.8,2528.4,3.95507]
[1725300298719,8.04205416,2528.8,2528.5,0.05849722]
[1725300303836,9.24168958,2528.8,2528.5,0.05849722]
[1725300304039,16.11555416,2528.6,2528.5,0.05849722]
[1725300304253,2.4897,2528.1,2527.3,9.6077]
[1725300304557,1.76160416,2527.6,2527.2,3.95687]
[1725300304695,1.76160416,2527.6,2527.3,3.95678]
[1725300304927,1.76160416,2527.6,2527.2,11.035417]
[1725300305336,1.76160416,2527.8,2527.4,3.95663]
[1725300305538,3.9558,2528.0,2527.4,3.95663]
[1725300305539,3.95571,2528.0,2527.5,0.395663]
[1725300305865,3.95571,2528.0,2527.5,4.352023]
[1725300306462,3.95571,2528.0,2527.6,0.05550376]
[1725300306656,7.91152,2528.0,2527.6,0.05550376]
[1725300307564,3.95571,2528.0,2527.6,0.05550376]
[1725300307869,3.95571,2528.0,2527.6,4.01180376]
[1725300308072,7.9115,2528.0,2527.6,0.05550376]
[1725300308279,3.95586,2527.9,2527.6,0.05550376]
[1725300308599,3.95616,2527.7,2527.6,0.05550376]
[1725300308775,6.38006,2527.7,2527.6,0.05550376]
[1725300308951,6.38006,2527.7,2527.2,3.95693]
[1725300309154,6.38006,2527.7,2527.6,0.05550376]
[1725300309369,6.38006,2527.7,2527.3,3.95678]
[1725300309666,6.38006,2527.7,2527.6,0.05644888]
[1725300309839,6.38006,2527.7,2527.2,7.078627]
[1725300310038,6.38006,2527.7,2527.6,0.05644888]
[1725300310242,3.95637,2527.6,2527.1,3.95697]
[1725300310629,3.95637,2527.6,2527.1,7.914]
[1725300311130,6.38006,2527.7,2527.2,3.95692]
[1725300311341,6.38006,2527.7,2527.2,4.74832]
[1725300312161,10.33633,2527.7,2527.2,4.74832]
[1725300312361,3.95632,2527.6,2527.2,4.74832]
[1725300314649,3.95597,2527.9,2527.4,2.4928]
[1725300315780,3.95597,2527.9,2527.5,3.95646]
[1725300315962,6.3776,2528.0,2527.5,7.91283]
[1725300316162,2.4219,2528.0,2527.6,3.95631]
[1725300316337,2.4219,2528.2,2527.7,3.95614]
[1725300316535,2.4219,2528.2,2527.8,4.351544]
[1725300317179,2.4219,2528.2,2527.8,3.95593]
[1725300317681,2.4219,2528.2,2527.5,4.996953]
[1725300317880,3.9557,2528.0,2527.6,3.9563]
[1725300318841,3.95554,2528.1,2527.6,3.95624]
[1725300319153,3.95554,2528.1,2527.6,5.1008523]
[1725300319353,3.95554,2528.1,2527.6,3.95624]
[1725300319850,3.95554,2528.1,2527.6,7.91248]
[1725300320846,3.95554,2528.1,2527.6,3.95624]
[1725300321247,3.95554,2528.1,2527.7,0.05644742]
[1725300321552,3.95569,2528.0,2527.7,0.05644742]
[1725300324401,7.91146,2528.0,2527.7,0.05644742]
[1725300324741,3.95569,2528.0,2527.7,0.05644742]
[1725300326702,2.3591,2527.9,2527.7,0.05644742]
[1725300326986,6.55095,2527.9,2527.3,19.98]
[1725300327195,3.95645,2527.6,2527.4,0.05650014]
[1725300327406,6.34945,2527.6,2527.4,0.05650014]
[1725300327703,3.95647,2527.5,2527.4,0.05650014]
[1725300328693,4.19178,2527.9,2527.1,2.4944]
[1725300328694,2.393,2527.9,2527.1,2.4944]
[1725300328893,3.95576,2528.0,2527.5,3.95636]
[1725300329099,3.95585,2527.9,2527.4,6.40741]
[1725300329263,3.95576,2528.0,2527.6,0.05633848]
[1725300329264,3.95602,2527.8,2527.6,0.05633848]
[1725300329467,3.95602,2527.8,2527.5,0.05639515]
[1725300329790,3.95602,2527.8,2527.6,0.05633848]
[1725300329979,3.95586,2527.9,2527.4,11.004661]
[1725300330175,3.95576,2528.0,2527.5,4.01283515]
[1725300331172,7.91154,2528.0,2527.5,4.01283515]
[1725300331354,3.95586,2527.9,2527.5,4.01283515]
[1725300331896,3.95586,2527.9,2527.5,0.13080441]
[1725300332062,3.95601,2527.8,2527.5,0.13080441]
[1725300332668,6.30201,2527.8,2527.5,0.13080441]
[1725300333902,6.31616,2528.0,2527.5,0.13080441]
[1725300334068,3.95586,2527.9,2527.5,0.53954585]
[1725300334269,3.95586,2527.9,2527.5,0.13080441]
[1725300334805,3.95602,2527.8,2527.5,0.13080441]
[1725300337599,3.95648,2527.5,2527.1,27.26]
[1725300337775,3.95648,2527.5,2527.2,0.13117402]
[1725300339701,7.91306,2527.5,2527.2,0.13117402]
[1725300340760,3.95665,2527.4,2527.2,0.13117402]
[1725300342204,3.95665,2527.4,2527.0,3.95725]
[1725300342439,3.95665,2527.4,2527.1,0.13126817]
[1725300342624,3.9565,2527.5,2527.1,0.13126817]
[1725300343222,3.95665,2527.4,2527.1,0.13126817]
[1725300343548,6.41256,2527.6,2527.1,0.13126817]
[1725300343549,6.41256,2527.6,2527.1,4.08829817]
[1725300343833,6.41256,2527.6,2527.2,0.40882982]
[1725300344054,10.36898,2527.6,2527.3,0.13130074]
[1725300344411,10.36898,2527.6,2527.1,3.95703]
[1725300344606,10.36898,2527.6,2527.2,0.13136037]
[1725300345010,6.41256,2527.6,2527.2,0.13136037]
[1725300345214,10.36897,2527.6,2527.2,0.13136037]
[1725300345411,6.41256,2527.6,2527.2,0.13136037]
[1725300346335,10.36899,2527.6,2527.2,0.13136037]
[1725300347800,3.95648,2527.5,2527.2,0.13136037]
[1725300348001,3.95648,2527.5,2527.0,3.95724]
[1725300348220,3.95648,2527.5,2527.1,1.56516557]
[1725300351599,3.95693,2527.3,2527.1,0.13142001]
[1725300351807,3.95694,2527.2,2526.7,19.12609064]
[1725300352030,3.95694,2527.2,2526.8,6.27658207]
[1725300352338,3.95694,2527.2,2526.8,3.13177148]
[1725300353041,3.95712,2527.1,2526.8,0.13177148]
[1725300353239,3.95733,2527.0,2526.5,10.90639289]
[1725300353439,3.95733,2527.0,2526.6,3.26859556]
[1725300354005,3.95712,2527.1,2526.6,7.22645556]
[1725300354362,3.95712,2527.1,2526.6,4.0897508]
[1725300354709,3.9569,2527.3,2526.7,6.32573]
[1725300355053,3.95665,2527.4,2527.0,2.3681]
[1725300355254,3.95648,2527.5,2527.0,2.3681]
[1725300355552,3.95648,2527.5,2527.1,0.13159254]
[1725300359456,4.23147641,2527.3,2527.1,0.13159254]
[1725300359629,10.40568,2527.2,2527.1,0.13159254]
[1725300359948,10.40568,2527.2,2526.4,7.67170289]
[1725300359949,3.95733,2527.0,2526.5,3.0]
[1725300360110,7.91468,2527.0,2526.5,7.01493556]
[1725300360518,3.95733,2527.0,2526.5,7.01493556]
[1725300360925,3.95733,2527.0,2526.5,4.01493556]
[1725300360926,3.95744,2526.9,2526.5,4.01493556]
[1725300361109,3.95744,2526.9,2526.4,2.4827]
[1725300362273,3.95744,2526.9,2526.4,5.4827]
[1725300364303,3.95744,2526.9,2526.4,9.44089]
[1725300366418,3.95744,2526.9,2526.5,0.12844008]
[1725300368501,3.95744,2526.9,2526.5,2.20919309]
[1725300372228,2.4918,2527.2,2526.5,2.20919309]
[1725300372385,6.21533,2527.4,2526.9,3.95731]
[1725300372588,2.2587,2527.4,2527.0,4.0853856]
[1725300373704,2.2587,2527.4,2527.0,0.1281556]
[1725300373705,6.21535,2527.4,2527.0,0.1281556]
[1725300374030,3.95682,2527.3,2527.0,0.1281556]
[1725300374201,4.578612,2527.2,2526.6,7.91556]
[1725300374399,3.95706,2527.2,2526.7,0.12833456]
[1725300374600,3.9571,2527.1,2526.7,0.12833456]
[1725300376097,3.9571,2527.1,2526.7,4.08604456]
[1725300376605,2.2587,2527.4,2527.0,3.95713]
[1725300376807,2.2587,2527.4,2527.1,0.12809596]
[1725300378143,3.95628,2527.7,2527.1,2.67613662]
[1725300378299,6.68427641,2527.8,2527.4,3.95662]
[1725300378300,2.4528,2527.8,2527.4,3.95662]
[1725300378702,2.4528,2527.8,2527.5,0.12760887]
[1725300379334,6.40883,2527.8,2527.5,0.12760887]
[1725300379541,2.4528,2527.8,2527.5,0.12760887]
[1725300379908,6.40882,2527.8,2527.5,0.12760887]
[1725300380135,3.95617,2527.7,2527.5,0.12760887]
[1725300380651,3.95617,2527.7,2527.6,0.12754925]
[1725300380956,3.95617,2527.7,2527.2,7.91369]
[1725300381280,3.95617,2527.7,2527.2,7.91368]
[1725300381426,3.95617,2527.7,2527.3,0.12772812]
[1725300381631,3.95617,2527.7,2527.2,7.91369]
[1725300381825,3.95617,2527.7,2527.3,0.12772812]
[1725300382033,3.95617,2527.7,2527.2,7.91369]
[1725300382344,3.95617,2527.7,2527.3,0.12750031]
[1725300382741,3.95617,2527.7,2527.3,3.95676]
[1725300383056,3.95617,2527.7,2527.4,0.12743378]
[1725300383258,3.95592,2527.9,2527.4,4.08406378]
[1725300383763,3.95592,2527.9,2527.5,2.326]
[1725300384146,3.95592,2527.9,2527.6,0.12731454]
[1725300384521,2.3173,2528.0,2527.6,0.12731454]
[1725300384728,3.95563,2528.1,2527.6,8.03979454]
[1725300384928,6.38163,2528.3,2527.8,3.95593]
[1725300385152,10.33693,2528.3,2527.8,3.95593]
[1725300385357,10.33693,2528.3,2527.9,0.1270943]
[1725300385569,11.79377064,2528.3,2527.9,0.1270943]
[1725300386621,3.95542,2528.2,2527.9,0.1270943]
[1725300387052,3.95542,2528.2,2527.7,3.95614]
[1725300387327,3.95542,2528.2,2527.8,0.1271539]
[1725300387755,1.45684064,2528.3,2527.8,0.1271539]
[1725300388062,3.95613,2527.8,2527.3,3.95671]
[1725300388364,3.95613,2527.8,2527.4,0.12661247]
[1725300388569,3.95617,2527.7,2527.4,0.12661247]
[1725300389168,7.91245,2527.7,2527.2,6.35724]
[1725300389327,3.95632,2527.6,2527.5,0.12665635]
[1725300389527,3.95617,2527.7,2527.2,6.35724]
[1725300389730,3.95617,2527.7,2527.5,0.12665635]
[1725300389961,7.91246,2527.7,2527.2,6.35724]
[1725300390130,7.91246,2527.7,2527.6,0.12659674]
[1725300390334,3.9566,2527.5,2527.1,7.28]
[1725300391069,3.95633,2527.6,2527.2,2.424]
[1725300391242,3.95633,2527.6,2527.2,5.545725]
[1725300393200,3.95647,2527.5,2527.1,11.23707]
[1725300393879,3.95626,2527.7,2527.1,11.23701]
[1725300394061,3.95626,2527.7,2527.1,15.25194556]
[1725300394800,3.95642,2527.6,2527.1,15.25194556]
[1725300396323,3.95642,2527.6,2527.2,0.12690425]
[1725300399299,3.95642,2527.6,2527.0,19.98]
[1725300399607,3.95642,2527.6,2527.3,0.12712065]
[1725300399906,3.95647,2527.5,2527.4,0.12706102]
[1725300400289,3.95647,2527.5,2527.0,23.99493556]
[1725300400290,3.95647,2527.5,2527.0,19.98]
[1725300400465,7.91303,2527.5,2527.4,0.12706102]
[1725300400790,3.95666,2527.4,2527.0,19.98]
[1725300401709,3.95666,2527.4,2527.0,23.93723]
[1725300402209,3.95735,2527.0,2526.5,6.38064]
[1725300402504,3.95745,2526.9,2526.4,3.95818]
[1725300402714,3.95745,2526.9,2526.4,4.992094]
[1725300403304,7.9147,2527.0,2526.5,3.95802]
[1725300403515,7.9147,2527.0,2526.5,5.0953094]
[1725300404313,6.61357641,2527.2,2526.3,6.38096]
[1725300404314,3.95764,2526.8,2526.3,6.38096]
[1725300404471,6.30384,2526.8,2526.3,3.95826]
[1725300404669,6.30384,2526.8,2526.3,4.986261]
[1725300406942,3.9579,2526.6,2526.1,7.91714]
[1725300407108,3.9579,2526.6,2526.2,3.95851]
[1725300408798,3.9579,2526.6,2526.1,3.95866]
[1725300409399,3.9579,2526.6,2526.0,4.893201]
[1725300409400,3.95805,2526.5,2526.0,4.893201]
[1725300409601,3.95805,2526.5,2526.0,8.851941]
[1725300410245,3.95805,2526.5,2526.1,3.95863]
[1725300410550,3.95805,2526.5,2526.1,5.7783371]
[1725300410727,3.9579,2526.6,2526.1,5.7783371]
[1725300411053,7.91587,2526.6,2526.1,3.95863]
[1725300411385,3.9579,2526.6,2526.2,0.12467974]
[1725300411856,7.91588,2526.6,2526.2,0.12467974]
[1725300412029,3.9579,2526.6,2526.2,0.12467974]
[1725300412361,3.9579,2526.6,2526.2,0.92887771]
[1725300415361,3.9579,2526.6,2526.2,4.88735771]
[1725300415721,3.95741,2526.9,2526.5,3.95802]
[1725300416066,3.95741,2526.9,2526.6,0.12444105]
[1725300416857,3.95741,2526.9,2526.7,0.12456784]
[1725300417161,3.95741,2526.9,2526.4,3.95805]
[1725300417325,3.95741,2526.9,2526.8,0.12450819]
[1725300417528,3.95741,2526.9,2526.4,3.95805]
[1725300417751,3.95741,2526.9,2526.8,0.12450819]
[1725300417944,3.95741,2526.9,2526.4,3.95805]
[1725300418159,3.95741,2526.9,2526.8,0.12450819]
[1725300418674,3.95741,2526.9,2526.4,9.7466528]
[1725300418848,3.95741,2526.9,2526.5,0.12468717]
[1725300419046,2.4665,2527.1,2526.6,3.95778]
[1725300419272,6.42372,2527.1,2526.7,0.53281456]
[1725300419480,3.95728,2527.0,2526.7,0.12456784]
[1725300420548,3.95691,2527.3,2526.7,0.12456784]
[1725300420744,3.95704,2527.2,2526.7,4.08221784]
[1725300420992,3.95712,2527.1,2526.7,0.12456784]
[1725300422602,3.95726,2527.0,2526.7,0.12456784]
[1725300428685,7.91461,2527.0,2526.7,0.12456784]
[1725300428890,7.91463,2527.0,2526.7,0.12456784]
[1725300429276,7.91463,2527.0,2526.5,3.95801]
[1725300429616,7.91463,2527.0,2526.6,0.12448247]
[1725300430169,3.95726,2527.0,2526.6,0.12448247]
[1725300430405,7.9146,2527.0,2526.6,0.12448247]
[1725300431007,3.95726,2527.0,2526.6,4.08234247]
[1725300431214,3.95726,2527.0,2526.6,5.12111072]
[1725300431913,6.43367,2527.1,2526.6,5.12111072]
[1725300432118,3.95717,2527.1,2526.7,0.90791207]
[1725300432331,3.95717,2527.1,2526.6,4.08234247]
[1725300432469,3.95717,2527.1,2526.8,0.12436315]
[1725300432470,3.95728,2527.0,2526.8,0.12436315]
[1725300432672,3.95728,2527.0,2526.6,3.95786]
[1725300432875,3.95728,2527.0,2526.7,0.12442281]
[1725300441970,3.95717,2527.1,2526.7,0.12442281]
[1725300441971,3.95713,2527.1,2526.7,0.12442281]
[1725300442186,7.91436,2527.1,2526.7,2.57062281]
[1725300442481,3.95713,2527.1,2526.7,2.57062281]
[1725300442870,3.95729,2527.0,2526.7,0.12442281]
[1725300443071,3.95757,2526.8,2526.4,2.4462]
[1725300443274,3.95757,2526.8,2526.5,0.12451454]
[1725300443848,3.95757,2526.8,2526.6,0.12426841]
[1725300444052,3.95757,2526.8,2526.3,3.95825]
[1725300444281,3.95757,2526.8,2526.4,0.12438775]
[1725300445097,3.95741,2526.9,2526.4,0.12438775]
[1725300445260,3.95741,2526.9,2526.4,5.74579153]
[1725300446290,3.95741,2526.9,2526.5,3.95802]
[1725300446505,7.91491,2526.9,2526.6,0.12431675]
[1725300446793,3.95741,2526.9,2526.6,0.12431675]
[1725300447088,3.95741,2526.9,2526.4,7.91629]
[1725300447254,3.95741,2526.9,2526.5,0.12437642]
[1725300448470,3.95741,2526.9,2526.5,4.08239642]
[1725300449317,3.95741,2526.9,2526.5,0.12437642]
[1725300449318,3.95774,2526.7,2526.5,0.12437642]
[1725300449483,6.33648,2526.6,2526.5,0.12437642]
[1725300449679,6.33648,2526.6,2526.2,11.23837]
[1725300449886,6.33648,2526.6,2526.3,0.12458554]
[1725300450989,2.3786,2526.6,2526.3,0.12458554]
[1725300451383,3.95775,2526.7,2526.3,0.12458554]
[1725300451973,3.95748,2526.9,2526.4,2.2778]
[1725300452179,3.9576,2526.8,2526.4,6.23599]
[1725300452505,3.9576,2526.8,2526.5,0.12460432]
[1725300454305,4.986968,2526.8,2526.5,0.12460432]
[1725300454668,4.986968,2526.8,2526.3,3.95834]
[1725300454869,4.986968,2526.8,2526.4,0.12465018]
[1725300455203,3.95773,2526.7,2526.4,0.12465018]
[1725300455443,6.21063,2526.7,2526.4,0.12465018]
[1725300455598,6.21063,2526.7,2526.2,17.6946]
[1725300455800,6.21063,2526.7,2526.5,0.1245905]
[1725300456000,6.21063,2526.7,2526.2,17.69452]
[1725300456202,2.2529,2526.7,2526.6,0.12453084]
[1725300456500,3.95767,2526.8,2526.6,0.12453084]
[1725300456732,3.95767,2526.8,2526.3,3.95834]
[1725300456918,3.95767,2526.8,2526.7,0.12447118]
[1725300457100,3.95767,2526.8,2526.3,3.95834]
[1725300457316,3.95767,2526.8,2526.4,0.12465018]
[1725300458044,2.2529,2526.9,2526.4,4.08272018]
[1725300458242,6.21032,2526.9,2526.4,5.8646212]
[1725300459088,6.21032,2526.9,2526.4,4.08272018]
[1725300459777,10.16782,2526.9,2526.4,4.08272018]
[1725300460339,3.95758,2526.8,2526.4,4.08272018]
[1725300461026,10.16784,2526.9,2526.4,4.08272018]
[1725300461199,11.3610116,2526.9,2526.4,4.08272018]
[1725300461400,11.3610116,2526.9,2526.4,0.12465018]
[1725300462007,3.95761,2526.8,2526.4,0.12465018]
[1725300462210,3.95761,2526.8,2526.2,13.736]
[1725300462413,3.95761,2526.8,2526.5,0.12464574]
[1725300462621,3.95761,2526.8,2526.2,13.736]
[1725300462827,3.95761,2526.8,2526.6,0.12458607]
[1725300463030,3.95761,2526.8,2526.2,13.736]
[1725300463251,3.95761,2526.8,2526.7,0.12452641]
[1725300463416,3.95761,2526.8,2526.2,13.736]
[1725300463631,3.95761,2526.8,2526.7,0.12452641]
[1725300464138,3.95761,2526.8,2526.2,13.736]
[1725300464332,3.95761,2526.8,2526.7,0.12452641]
[1725300464535,3.95761,2526.8,2526.2,13.736]
[1725300464818,3.95761,2526.8,2526.7,0.12452641]
[1725300465042,3.95761,2526.8,2526.2,13.736]
[1725300465228,3.95761,2526.8,2526.7,0.12452641]
[1725300465428,3.95761,2526.8,2526.2,13.736]
[1725300465640,3.95761,2526.8,2526.7,0.12452641]
[1725300465853,3.95777,2526.7,2526.2,9.7776]
[1725300467362,3.95777,2526.7,2526.2,13.79253556]
[1725300468123,3.95777,2526.7,2526.2,7.28]
[1725300468124,2.4865,2526.6,2526.2,7.28]
[1725300469137,3.9582,2526.4,2526.2,7.28]
[1725300469325,3.9582,2526.4,2526.1,19.98]
[1725300471326,3.9582,2526.4,2526.2,0.124956]
[1725300472374,6.36145,2526.3,2526.2,0.124956]
[1725300472580,3.95856,2526.2,2525.8,7.28]
[1725300476763,3.95856,2526.2,2525.7,22.3908]
[1725300476973,3.95856,2526.2,2525.7,26.40573556]
[1725300477358,10.31991,2526.3,2525.7,30.36493556]
[1725300477675,6.36145,2526.3,2525.7,30.36493556]
[1725300477839,10.31988,2526.3,2525.8,3.2995911]
[1725300478044,6.36145,2526.3,2525.8,3.2995911]
[1725300478548,10.31989,2526.3,2525.8,3.2995911]